fUST/lending_fUST_20250901
["ID","MTS","AMOUNT","RATE_DAILY","PERIOD"]
[382588137,1756674665326,-971.89,0.00018425,2]
[382588139,1756674665335,-781.55,0.00018425,2]
[382588141,1756674665345,-480.0,0.00018425,2]
[382588143,1756674665354,-480.0,0.00018425,2]
[382588145,1756674665363,-480.0,0.00018425,2]
[382588147,1756674665373,-441.29655192,0.00018425,2]
[382588149,1756674665382,-480.0,0.00018425,2]
[382588151,1756674665391,-920.75,0.00018425,2]
[382588153,1756674665400,-480.0,0.00018425,2]
[382588155,1756674665410,-706.22,0.00018425,2]
[382588157,1756674665419,-3485.14,0.00018425,2]
[382588159,1756674665428,-559.23,0.00018425,2]
[382588161,1756674665439,-1384.43,0.00018425,2]
[382588163,1756674665449,-694.71,0.00018425,2]
[382588165,1756674665462,-480.0,0.00018425,2]
[382588167,1756674665471,-773.25,0.00018425,2]
[382588169,1756674665480,-772.05,0.00018425,2]
[382588171,1756674665490,-480.0,0.00018425,2]
[382588173,1756674665501,-824.35,0.00018425,2]
[382588175,1756674665511,-905.18,0.00018425,2]
[382588177,1756674665520,-673.01,0.00018425,2]
[382588179,1756674665529,-480.0,0.00018425,2]
[382588181,1756674665539,-929.05,0.00018425,2]
[382588183,1756674665548,-4200.05,0.00018425,2]
[382588185,1756674665558,-5722.98,0.00018425,2]
[382588187,1756674665568,-577.04,0.00018425,2]
[382588189,1756674665578,-595.51,0.00018425,2]
[382588191,1756674665587,-856.48,0.00018425,2]
[382588193,1756674665596,-480.0,0.00018425,2]
[382588194,1756674665605,-775.39,0.00018425,2]
[382588196,1756674665616,-1901.44,0.00018425,2]
[382588198,1756674665626,-480.0,0.00018425,2]
[382588200,1756674665635,-1143.32,0.00018425,2]
[382588202,1756674665645,-480.0,0.00018425,2]
[382588204,1756674665654,-415.13902675,0.00018425,2]
[382588206,1756674665664,-480.0,0.00018425,2]
[382588208,1756674665674,-678.0,0.00018425,2]
[382588210,1756674665683,-399.98078918,0.00018425,2]
[382588212,1756674665693,-480.0,0.00018425,2]
[382588214,1756674665703,-767.3,0.00018425,2]
[382588216,1756674665712,-480.0,0.00018425,2]
[382588218,1756674665721,-480.0,0.00018425,2]
[382588220,1756674665733,-4028.03,0.00018425,2]
[382588222,1756674665743,-843.58,0.00018425,2]
[382588224,1756674665753,-973.72,0.00018425,2]
[382588227,1756674665763,-480.0,0.00018425,2]
[382588228,1756674665772,-2742.43,0.00018425,2]
[382588231,1756674665784,-480.0,0.00018425,2]
[382588233,1756674665794,-812.45,0.00018425,2]
[382588234,1756674665803,-480.0,0.00018425,2]
[382588237,1756674665814,-883.04,0.00018425,2]
[382588239,1756674665826,-480.0,0.00018425,2]
[382588241,1756674665838,-480.0,0.00018425,2]
[382588242,1756674665849,-617.9,0.00018425,2]
[382588244,1756674665859,-480.0,0.00018425,2]
[382588247,1756674665868,-480.0,0.00018425,2]
[382588249,1756674665879,-480.0,0.00018425,2]
[382588250,1756674665889,-524.07,0.00018425,2]
[382588252,1756674665898,-480.0,0.00018425,2]
[382588254,1756674665907,-860.12,0.00018425,2]
[382588256,1756674665916,-154.186936,0.00018433,10]
[382588258,1756674665925,-486.0,0.0001846,2]
[382588260,1756674665935,-480.0,0.00018467,2]
[382588262,1756674665944,-744.5,0.00018467,2]
[382588264,1756674665953,-874.18,0.00018467,2]
[382588266,1756674665963,-480.0,0.00018467,2]
[382588268,1756674665974,-615.0,0.00018467,2]
[382588270,1756674665983,-480.0,0.00018468,2]
[382588272,1756674665992,-480.0,0.00018468,2]
[382588274,1756674666001,-480.0,0.00018468,2]
[382588276,1756674666011,-480.0,0.00018468,2]
[382588277,1756674666020,-895.0,0.00018468,2]
[382588278,1756674666030,-480.0,0.00018468,2]
[382588279,1756674666039,-480.0,0.00018468,2]
[382588280,1756674666048,-480.0,0.00018468,2]
[382588281,1756674666058,-762.61,0.00018468,2]
[382588282,1756674666068,-480.0,0.00018468,2]
[382588283,1756674666077,-785.19,0.00018468,2]
[382588284,1756674666087,-480.0,0.00018468,2]
[382588285,1756674666096,-1046.65,0.00018468,2]
[382588286,1756674666105,-522.49,0.00018468,2]
[382588287,1756674666115,-480.0,0.00018468,2]
[382588289,1756674666124,-246.97110178,0.00018468,2]
[382588291,1756674666135,-480.0,0.00018468,2]
[382588293,1756674666144,-480.0,0.00018468,2]
[382588295,1756674666154,-502.60619226,0.00018468,2]
[382588297,1756674666165,-480.0,0.00018468,2]
[382588299,1756674666175,-480.0,0.00018468,2]
[382588301,1756674666185,-856.76,0.00018468,2]
[382588303,1756674666195,-480.0,0.00018468,2]
[382588305,1756674666204,-480.0,0.00018468,2]
[382588307,1756674666214,-1087.8,0.00018468,2]
[382588309,1756674666223,-480.0,0.00018468,2]
[382588310,1756674666233,-995.77,0.00018468,2]
[382588312,1756674666244,-480.0,0.00018468,2]
[382588314,1756674666255,-354.6879656,0.00018468,2]
[382588316,1756674666266,-480.0,0.00018468,2]
[382588318,1756674666275,-836.07,0.00018468,2]
[382588321,1756674666285,-548.66,0.00018468,2]
[382588323,1756674666295,-698.27,0.00018468,2]
[382588325,1756674666304,-480.0,0.00018468,2]
[382588327,1756674666314,-480.0,0.00018468,2]
[382588329,1756674666323,-765.48,0.00018468,2]
[382588331,1756674666333,-1225.05,0.00018468,2]
[382588333,1756674666343,-674.39,0.00018468,2]
[382588335,1756674666352,-480.0,0.00018468,2]
[382588336,1756674666363,-480.0,0.00018468,2]
[382588339,1756674666373,-533.61,0.00018468,2]
[382588341,1756674666385,-508.04,0.00018468,2]
[382588342,1756674666395,-480.0,0.00018468,2]
[382588344,1756674666404,-480.0,0.00018468,2]
[382588346,1756674666414,-876.55,0.00018468,2]
[382588348,1756674666423,-480.0,0.00018468,2]
[382588350,1756674666433,-188.77989752,0.00018468,2]
[382588352,1756674666443,-555.91,0.00018468,2]
[382588354,1756674666452,-1110.35,0.00018468,2]
[382588356,1756674666465,-989.14,0.00018468,2]
[382588358,1756674666474,-623.15,0.00018468,2]
[382588360,1756674666483,-151.0,0.00018468,2]
[382588362,1756674666492,-480.0,0.00018468,2]
[382588364,1756674666501,-972.85,0.00018468,2]
[382588366,1756674666511,-562.21,0.00018468,2]
[382588368,1756674666520,-1052.02,0.00018468,2]
[382588370,1756674666530,-480.0,0.00018468,2]
[382588372,1756674666540,-480.0,0.00018468,2]
[382588374,1756674666549,-480.0,0.00018468,2]
[382588376,1756674666558,-480.0,0.00018468,2]
[382588378,1756674666568,-231.02036955,0.00018468,2]
[382588380,1756674666577,-480.0,0.00018468,2]
[382588382,1756674666587,-480.0,0.00018468,2]
[382588384,1756674666596,-216.66075769,0.00018468,2]
[382588386,1756674666606,-510.79,0.00018468,2]
[382588388,1756674666615,-719.42,0.00018468,2]
[382588390,1756674666624,-480.0,0.00018468,2]
[382588392,1756674666633,-573.64,0.00018468,2]
[382588394,1756674666643,-480.0,0.00018468,2]
[382588396,1756674666653,-649.3,0.00018468,2]
[382588398,1756674666663,-585.21,0.00018468,2]
[382588401,1756674666679,-581.54088737,0.00018468,2]
[382588402,1756674666689,-496.46,0.00018468,2]
[382588405,1756674666699,-1173.25,0.00018468,2]
[382588407,1756674666708,-480.0,0.00018468,2]
[382588409,1756674666717,-480.0,0.00018468,2]
[382588410,1756674666726,-482.35,0.00018468,2]
[382588413,1756674666735,-518.63,0.00018468,2]
[382588415,1756674666748,-480.0,0.00018468,2]
[382588417,1756674666758,-866.81,0.00018468,2]
[382588419,1756674666767,-895.76,0.00018468,2]
[382588421,1756674666776,-910.6,0.00018468,2]
[382588423,1756674666786,-587.72,0.00018468,2]
[382588425,1756674666795,-882.7,0.00018468,2]
[382588426,1756674666804,-990.58,0.00018468,2]
[382588429,1756674666813,-480.0,0.00018468,2]
[382588430,1756674666823,-892.91,0.00018468,2]
[382588432,1756674666832,-1124.35,0.00018468,2]
[382588434,1756674666841,-480.0,0.00018468,2]
[382588437,1756674666851,-480.0,0.00018468,2]
[382588438,1756674666860,-556.81,0.00018468,2]
[382588440,1756674666869,-480.0,0.00018468,2]
[382588442,1756674666878,-1094.52,0.00018468,2]
[382588444,1756674666887,-849.35,0.00018468,2]
[382588446,1756674666897,-480.0,0.00018468,2]
[382588448,1756674666906,-930.7,0.00018468,2]
[382588450,1756674666915,-1508.46,0.00018468,2]
[382588452,1756674666925,-599.26,0.00018468,2]
[382588454,1756674666934,-1303.59,0.00018468,2]
[382588456,1756674666943,-1151.72,0.00018468,2]
[382588458,1756674666953,-480.0,0.00018468,2]
[382588460,1756674666963,-480.0,0.00018468,2]
[382588462,1756674666972,-480.0,0.00018468,2]
[382588464,1756674666981,-480.0,0.00018468,2]
[382588466,1756674666991,-480.0,0.00018468,2]
[382588468,1756674667001,-970.25,0.00018468,2]
[382588470,1756674667010,-151.0,0.00018468,2]
[382588472,1756674667019,-151.0,0.00018468,2]
[382588474,1756674667028,-480.0,0.00018468,2]
[382588476,1756674667037,-631.64,0.00018468,2]
[382588478,1756674667047,-269.855448,0.00018468,2]
[382588480,1756674667056,-480.0,0.00018468,2]
[382588482,1756674667065,-1809.39,0.00018468,2]
[382588484,1756674667075,-269.855448,0.00018468,2]
[382588486,1756674667084,-480.0,0.00018468,2]
[382588488,1756674667093,-269.855448,0.00018468,2]
[382588490,1756674667103,-269.855448,0.00018468,2]
[382588492,1756674667112,-238.47418321,0.00018468,2]
[382588494,1756674667122,-480.0,0.00018468,2]
[382588496,1756674667131,-480.0,0.00018468,2]
[382588498,1756674667140,-151.0,0.00018468,2]
[382588500,1756674667150,-497.68,0.00018468,2]
[382588502,1756674667159,-480.0,0.00018468,2]
[382588504,1756674667168,-1577.96,0.00018468,2]
[382588506,1756674667178,-158.813232,0.00018468,2]
[382588508,1756674667188,-560.13,0.00018468,2]
[382588510,1756674667197,-323.38408743,0.00018468,2]
[382588512,1756674667207,-480.0,0.00018468,2]
[382588514,1756674667216,-963.21,0.00018468,2]
[382588516,1756674667225,-480.0,0.00018468,2]
[382588518,1756674667236,-572.97,0.00018468,2]
[382588520,1756674667245,-480.0,0.00018468,2]
[382588522,1756674667255,-480.0,0.00018468,2]
[382588524,1756674667265,-480.0,0.00018468,2]
[382588526,1756674667274,-160.120775,0.00018468,2]
[382588528,1756674667284,-1082.95,0.00018468,2]
[382588530,1756674667293,-480.0,0.00018468,2]
[382588532,1756674667302,-160.120775,0.00018468,2]
[382588534,1756674667312,-160.120775,0.00018468,2]
[382588536,1756674667321,-553.35,0.00018468,2]
[382588538,1756674667331,-160.120783,0.00018468,2]
[382588540,1756674667341,-535.16,0.00018468,2]
[382588542,1756674667350,-480.0,0.00018468,2]
[382588544,1756674667359,-535.7,0.00018468,2]
[382588546,1756674667368,-480.0,0.00018468,2]
[382588548,1756674667378,-1149.21,0.00018468,2]
[382588550,1756674667388,-480.0,0.00018468,2]
[382588552,1756674667398,-480.0,0.00018468,2]
[382588554,1756674667407,-660.94,0.00018468,2]
[382588556,1756674667416,-480.0,0.00018468,2]
[382588558,1756674667426,-594.61,0.00018468,2]
[382588560,1756674667435,-480.0,0.00018468,2]
[382588562,1756674667445,-480.0,0.00018468,2]
[382588564,1756674667456,-779.46,0.00018468,2]
[382588566,1756674667468,-569.86,0.00018468,2]
[382588568,1756674667477,-944.13,0.00018468,2]
[382588570,1756674667486,-480.0,0.00018468,2]
[382588572,1756674667496,-480.0,0.00018468,2]
[382588574,1756674667506,-480.0,0.00018468,2]
[382588576,1756674667516,-1125.84,0.00018468,2]
[382588578,1756674667525,-151.0,0.00018468,2]
[382588580,1756674667536,-1500.0,0.00018468,2]
[382588582,1756674667546,-1500.0,0.00018468,2]
[382588584,1756674667555,-1566.01651207,0.00018468,2]
[382588586,1756674667564,-1500.0,0.00018468,2]
[382588588,1756674667573,-1566.01644715,0.00018468,2]
[382588590,1756674667583,-1500.0,0.00018468,2]
[382588592,1756674667592,-1500.0,0.00018468,2]
[382588594,1756674667601,-1500.0,0.00018468,2]
[382588596,1756674667611,-1500.0,0.00018468,2]
[382588598,1756674667621,-1500.0,0.00018468,2]
[382588600,1756674667631,-1500.0,0.00018468,2]
[382588602,1756674667640,-1500.0,0.00018468,2]
[382588604,1756674667650,-1065.12520254,0.00018468,2]
[382588606,1756674667659,-1500.0,0.00018468,2]
[382588608,1756674667669,-1115.87921458,0.00018468,2]
[382588610,1756674667679,-1500.0,0.00018468,2]
[382588612,1756674667689,-1190.54242414,0.00018468,2]
[382588614,1756674667700,-1500.0,0.00018468,2]
[382588616,1756674667709,-1500.0,0.00018468,2]
[382588618,1756674667720,-1500.0,0.00018468,2]
[382588620,1756674667729,-674.7,0.00018469,2]
[382588622,1756674667739,-480.0,0.00018469,2]
[382588624,1756674667748,-480.0,0.00018469,2]
[382588626,1756674667757,-874.1,0.00018469,2]
[382588628,1756674667767,-480.0,0.00018469,2]
[382588630,1756674667777,-480.0,0.00018469,2]
[382588632,1756674667786,-415.47734393,0.00018469,2]
[382588634,1756674667796,-151.0,0.00018469,2]
[382588636,1756674667806,-151.0,0.00018469,2]
[382588638,1756674667815,-151.0,0.00018469,2]
[382588640,1756674667824,-480.0,0.00018469,2]
[382588642,1756674667833,-480.0,0.00018469,2]
[382588644,1756674667843,-480.0,0.00018469,2]
[382588646,1756674667852,-480.0,0.00018469,2]
[382588648,1756674667861,-480.0,0.00018469,2]
[382588650,1756674667870,-502.64,0.00018469,2]
[382588652,1756674667879,-580.79,0.00018469,2]
[382588654,1756674667888,-484.01,0.00018469,2]
[382588656,1756674667897,-480.0,0.00018469,2]
[382588658,1756674667907,-500.0,0.0001847,2]
[382588660,1756674667916,-480.0,0.0001847,2]
[382588662,1756674667925,-480.0,0.0001847,2]
[382588664,1756674667934,-480.0,0.0001847,2]
[382588666,1756674667944,-841.54,0.0001847,2]
[382588668,1756674667953,-480.0,0.0001847,2]
[382588670,1756674667963,-514.58,0.0001847,2]
[382588672,1756674667972,-658.13,0.0001847,2]
[382588674,1756674667981,-480.0,0.0001847,2]
[382588676,1756674667990,-493.34,0.0001847,2]
[382588678,1756674668000,-581.62,0.0001847,2]
[382588680,1756674668009,-480.0,0.0001847,2]
[382588682,1756674668019,-1146.22,0.0001847,2]
[382588684,1756674668028,-675.12,0.0001847,2]
[382588686,1756674668038,-537.04,0.0001847,2]
[382588688,1756674668047,-1256.0,0.00018472,2]
[382588690,1756674668056,-151.0,0.00018472,2]
[382588692,1756674668066,-309.0,0.000185,2]
[382588694,1756674668076,-114.31100201,0.00018505,2]
[382588763,1756674668732,-0.02945288,0.00016507,2]
[382588924,1756674670362,-479.97054712,0.00016507,2]
[382588926,1756674670372,-919.49,0.00017055,2]
[382588928,1756674670382,-151.0,0.00017329,2]
[382588930,1756674670392,-919.49,0.00017329,2]
[382588932,1756674670402,-919.49,0.00017603,2]
[382588934,1756674670411,-1015.41,0.00017877,2]
[382588936,1756674670420,-919.49,0.00017877,2]
[382588938,1756674670430,-1000.0,0.0001792,2]
[382588940,1756674670439,-1000.0,0.0001792,2]
[382588942,1756674670449,-1000.0,0.0001792,2]
[382588944,1756674670463,-1000.0,0.0001792,2]
[382588946,1756674670472,-1000.0,0.0001792,2]
[382588948,1756674670481,-1000.0,0.0001792,2]
[382588950,1756674670491,-979.23,0.0001815,2]
[382588952,1756674670500,-1015.41,0.00018151,2]
[382588954,1756674670510,-648.90237688,0.00018151,2]
[382589004,1756674671283,-480.0,0.00016507,2]
[382589006,1756674671292,-480.0,0.00016507,2]
[382589008,1756674671301,-480.0,0.0001655,2]
[382589010,1756674671310,-38883.65890581,0.0001655,2]
[382589012,1756674671320,-480.0,0.00016781,2]
[382589014,1756674671329,-400.65,0.00016781,2]
[382589016,1756674671338,-568.55,0.00017055,2]
[382589018,1756674671347,-151.0,0.00017329,2]
[382589020,1756674671356,-151.0,0.00017329,2]
[382589022,1756674671366,-151.0,0.00017603,2]
[382589024,1756674671375,-1000.0,0.0001792,2]
[382589026,1756674671385,-1000.0,0.0001792,2]
[382589028,1756674671395,-1000.0,0.0001792,2]
[382589030,1756674671404,-868.837679,0.0001792,2]
[382589032,1756674671414,-270.58762312,0.00018151,2]
[382589034,1756674671425,-979.23,0.00018424,2]
[382589036,1756674671434,-1015.41,0.00018425,2]
[382589038,1756674671444,-919.49,0.00018425,2]
[382589040,1756674671454,-151.0,0.00018468,2]
[382589042,1756674671467,-700.62488595,0.00018505,2]
[382589044,1756674671476,-151.0,0.00018516,2]
[382589046,1756674671486,-151.0,0.00018516,2]
[382589048,1756674671495,-151.0,0.00018516,2]
[382589050,1756674671506,-151.0,0.00018516,2]
[382589052,1756674671515,-1927.9355674,0.00018516,2]
[382589054,1756674671525,-1002.08334312,0.00018516,2]
[382589056,1756674671534,-2000.0,0.00018516,2]
[382589058,1756674671543,-997.74588806,0.00018516,2]
[382589060,1756674671553,-2000.0,0.00018516,2]
[382589062,1756674671562,-2000.0,0.00018516,2]
[382589064,1756674671571,-2000.0,0.00018516,2]
[382589066,1756674671579,-720.0,0.0001857,20]
[382589068,1756674671588,-500.0,0.00018582,2]
[382589070,1756674671598,-3000.0,0.000186,2]
[382589072,1756674671607,-3000.0,0.0001861,2]
[382589074,1756674671616,-3000.0,0.0001862,2]
[382589076,1756674671626,-3000.0,0.0001863,2]
[382589078,1756674671636,-3000.0,0.0001864,2]
[382589079,1756674671646,-3000.0,0.0001865,2]
[382589081,1756674671656,-360.0,0.00018653,2]
[382589083,1756674671669,-3000.0,0.0001866,2]
[382589085,1756674671678,-3000.0,0.0001867,2]
[382589087,1756674671687,-3000.0,0.0001868,2]
[382589089,1756674671696,-3000.0,0.0001869,2]
[382589091,1756674671706,-1032.83,0.00018698,2]
[382589093,1756674671715,-621.14,0.00018698,2]
[382589095,1756674671724,-480.0,0.00018698,2]
[382589097,1756674671734,-480.0,0.00018698,2]
[382589100,1756674671747,-1833.22,0.00018698,2]
[382589102,1756674671756,-480.0,0.00018698,2]
[382589104,1756674671765,-480.0,0.00018698,2]
[382589106,1756674671774,-979.7,0.00018698,2]
[382589108,1756674671785,-480.0,0.00018698,2]
[382589110,1756674671794,-1585.93,0.00018698,2]
[382589112,1756674671804,-612.34,0.00018698,2]
[382589114,1756674671814,-505.39,0.00018698,2]
[382589116,1756674671824,-1499.59,0.00018698,2]
[382589118,1756674671832,-649.57,0.00018698,2]
[382589119,1756674671843,-480.0,0.00018698,2]
[382589121,1756674671853,-487.49,0.00018698,2]
[382589124,1756674671863,-579.1,0.00018698,2]
[382589125,1756674671872,-480.0,0.00018698,2]
[382589128,1756674671882,-979.23,0.00018698,2]
[382589129,1756674671892,-500.0,0.00018699,2]
[382589132,1756674671901,-480.0,0.00018699,2]
[382589133,1756674671911,-922.29,0.00018699,2]
[382589135,1756674671920,-271.28331543,0.00018699,2]
[382589137,1756674671929,-480.0,0.00018699,2]
[382589139,1756674671938,-487.12,0.00018699,2]
[382589141,1756674671947,-560.06,0.00018699,2]
[382589143,1756674671957,-480.0,0.00018699,2]
[382589162,1756674672115,-480.0,0.00018699,2]
[382589164,1756674672126,-1330.57,0.00018699,2]
[382589166,1756674672136,-480.0,0.00018699,2]
[382589168,1756674672147,-480.0,0.00018699,2]
[382589170,1756674672159,-567.08652312,0.00018699,2]
[382589172,1756674672176,-623.42,0.00018699,2]
[382589174,1756674672195,-480.0,0.00018699,2]
[382589176,1756674672205,-480.0,0.00018699,2]
[382589178,1756674672215,-553.56,0.00018699,2]
[382589180,1756674672224,-614.54,0.00018699,2]
[382589181,1756674672234,-733.87,0.00018699,2]
[382589183,1756674672243,-947.4,0.00018699,2]
[382589185,1756674672252,-971.89,0.00018699,2]
[382589188,1756674672263,-781.55,0.00018699,2]
[382589189,1756674672273,-480.0,0.00018699,2]
[382589192,1756674672284,-480.0,0.00018699,2]
[382589193,1756674672294,-480.0,0.00018699,2]
[382589195,1756674672304,-480.0,0.00018699,2]
[382589197,1756674672314,-616.69400632,0.00018699,2]
[382589200,1756674672325,-3485.14,0.00018699,2]
[382589201,1756674672336,-559.23,0.00018699,2]
[382589204,1756674672346,-1384.43,0.00018699,2]
[382589205,1756674672355,-694.71,0.00018699,2]
[382589207,1756674672364,-176.93014696,0.00018699,2]
[382589210,1756674672374,-773.25,0.00018699,2]
[382589212,1756674672384,-772.05,0.00018699,2]
[382589214,1756674672393,-480.0,0.00018699,2]
[382589216,1756674672402,-905.18,0.00018699,2]
[382589217,1756674672411,-673.01,0.00018699,2]
[382589220,1756674672421,-480.0,0.00018699,2]
[382589222,1756674672431,-929.05,0.00018699,2]
[382589224,1756674672443,-4200.05,0.00018699,2]
[382589226,1756674672452,-5722.98,0.00018699,2]
[382589228,1756674672466,-577.04,0.00018699,2]
[382589230,1756674672476,-595.51,0.00018699,2]
[382589232,1756674672485,-856.48,0.00018699,2]
[382589234,1756674672494,-480.0,0.00018699,2]
[382589236,1756674672504,-775.39,0.00018699,2]
[382589238,1756674672513,-1901.44,0.00018699,2]
[382589240,1756674672523,-480.0,0.00018699,2]
[382589242,1756674672533,-1143.32,0.00018699,2]
[382589244,1756674672542,-480.0,0.00018699,2]
[382589246,1756674672552,-480.0,0.00018699,2]
[382589248,1756674672561,-678.0,0.00018699,2]
[382589250,1756674672571,-480.0,0.00018699,2]
[382589252,1756674672581,-767.3,0.00018699,2]
[382589254,1756674672591,-480.0,0.00018699,2]
[382589256,1756674672600,-480.0,0.00018699,2]
[382589258,1756674672609,-4028.03,0.00018699,2]
[382589260,1756674672619,-843.58,0.00018699,2]
[382589262,1756674672628,-973.72,0.00018699,2]
[382589264,1756674672638,-315.27636578,0.00018699,2]
[382589266,1756674672648,-2742.43,0.00018699,2]
[382589268,1756674672657,-480.0,0.00018699,2]
[382589270,1756674672666,-812.45,0.00018699,2]
[382589272,1756674672675,-480.0,0.00018699,2]
[382589274,1756674672685,-883.04,0.00018699,2]
[382589276,1756674672696,-480.0,0.00018699,2]
[382589278,1756674672706,-480.0,0.00018699,2]
[382589280,1756674672716,-617.9,0.00018699,2]
[382589282,1756674672726,-480.0,0.00018699,2]
[382589284,1756674672736,-480.0,0.00018699,2]
[382589286,1756674672745,-480.0,0.00018699,2]
[382589288,1756674672754,-524.07,0.00018699,2]
[382589290,1756674672763,-480.0,0.00018699,2]
[382589292,1756674672773,-860.12,0.00018699,2]
[382589294,1756674672783,-58.58371993,0.00018699,2]
[382589382,1756674673720,-480.0,0.00016507,2]
[382589384,1756674673729,-480.0,0.0001655,2]
[382589386,1756674673739,-480.0,0.00016781,2]
[382589388,1756674673748,-358.4,0.00016824,2]
[382589390,1756674673757,-480.0,0.00017055,2]
[382589392,1756674673767,-98.884268,0.00017329,2]
[382593600,1756674774293,10000.01,0.00016443,2]
[382593601,1756674774322,10000.01,0.00016443,2]
[382593602,1756674774348,10000.01,0.00016443,2]
[382593603,1756674774377,10000.01,0.00016443,2]
[382593604,1756674774403,3494.42011568,0.00016443,2]
[382593605,1756674788965,154.186936,0.00025,30]
[382593607,1756674797767,4345.76,0.000165,2]
[382593608,1756674813143,2159.82988432,0.000165,2]
[382593609,1756674813171,1575.72011568,0.000165,2]
[382593610,1756674906185,154.186939,0.00025,30]
[382593611,1756674921717,1005.33618021,0.00016407,2]
[382593612,1756674929380,234.0,0.0002295,120]
[382593613,1756674930683,234.0,0.00024098,120]
[382593614,1756674934594,520.965522,0.00015622,2]
[382593615,1756674947949,964.926005,0.00013699,2]
[382593626,1756675053244,-300.0,0.00016504,2]
[382593627,1756675053278,-480.0,0.00016505,2]
[382593628,1756675053309,-614.86,0.00016505,2]
[382593629,1756675053341,-480.0,0.00016505,2]
[382593630,1756675053373,-480.0,0.00016505,2]
[382593631,1756675053405,-208.22985903,0.00016505,2]
[382593632,1756675053439,-480.0,0.00016505,2]
[382593633,1756675053470,-480.0,0.00016505,2]
[382593634,1756675053503,-480.0,0.00016505,2]
[382593635,1756675053534,-480.0,0.00016506,2]
[382593636,1756675053565,-441.71028194,0.00016506,2]
[382593637,1756675053705,-150.40971806,0.00016506,2]
[382593638,1756675053735,-607.43,0.00016506,2]
[382593639,1756675053768,-488.47,0.00016506,2]
[382593640,1756675053800,-480.0,0.00016506,2]
[382593641,1756675053832,-496.33,0.00016506,2]
[382593642,1756675053865,-582.79,0.00016506,2]
[382593643,1756675053897,-480.0,0.00016506,2]
[382593644,1756675053928,-480.0,0.00016506,2]
[382593645,1756675053960,-480.0,0.00016506,2]
[382593646,1756675053992,-586.63056388,0.00016506,2]
[382593647,1756675054131,-335.88943612,0.00016506,2]
[382593648,1756675054163,-480.0,0.00016506,2]
[382593649,1756675054195,-480.0,0.00016506,2]
[382593650,1756675054227,-480.0,0.00016506,2]
[382593651,1756675054262,-2648.95112776,0.00016506,2]
[382593652,1756675054379,-1150.32887224,0.00016506,2]
[382593653,1756675054413,-645.51,0.00016506,2]
[382593654,1756675054447,-516.33,0.00016506,2]
[382593655,1756675054479,-714.57,0.00016506,2]
[382593656,1756675054511,-480.0,0.00016506,2]
[382593657,1756675054543,-480.0,0.00016506,2]
[382593658,1756675054573,-480.0,0.00016506,2]
[382593659,1756675054604,-480.0,0.00016506,2]
[382593660,1756675054856,-480.0,0.00016506,2]
[382593661,1756675054895,-480.0,0.00016506,2]
[382593662,1756675054933,-480.0,0.00016506,2]
[382593663,1756675054972,-565.74,0.00016506,2]